bitfinex/quotes_BTCUSD_20240929
["timestamp","ask_amount","ask_price","bid_price","bid_amount"]
[1727624023841,0.2225822,65806.0,65805.0,0.06142302]
[1727624024326,0.22884961,65806.0,65805.0,0.06142302]
[1727624025285,0.18329805,65806.0,65805.0,0.06142302]
[1727624026123,0.18329805,65806.0,65805.0,0.06242302]
[1727624028293,0.03133705,65806.0,65805.0,0.06242302]
[1727624028741,0.03133705,65806.0,65805.0,0.21438702]
[1727624028956,0.03133705,65806.0,65805.0,0.06242302]
[1727624030054,0.03133705,65806.0,65805.0,0.21438702]
[1727624031858,0.03133705,65806.0,65805.0,0.30448702]
[1727624032064,0.03133705,65806.0,65805.0,0.21438702]
[1727624032728,0.06835403,65807.0,65806.0,0.151961]
[1727624033765,0.09113871,65808.0,65806.0,0.151961]
[1727624033969,0.001,65807.0,65806.0,0.151961]
[1727624035886,0.09113871,65808.0,65806.0,0.151961]
[1727624036091,0.04557469,65807.0,65806.0,0.151961]
[1727624036301,0.0250681,65807.0,65806.0,0.151961]
[1727624036518,0.07064364,65807.0,65806.0,0.151961]
[1727624036748,0.0250681,65807.0,65806.0,0.151961]
[1727624037308,0.0250681,65807.0,65806.0,0.329461]
[1727624038059,0.001,65807.0,65806.0,0.329461]
[1727624038290,0.01960792,65807.0,65806.0,0.329461]
[1727624038489,0.001,65807.0,65806.0,0.329461]
[1727624044338,0.00147111,65810.0,65806.0,0.50564556]
[1727624044535,0.00147111,65810.0,65809.0,0.5102193]
[1727624045629,0.00247111,65810.0,65809.0,0.5102193]
[1727624045878,0.00147111,65810.0,65809.0,0.5102193]
[1727624046360,0.00247111,65810.0,65809.0,0.5202193]
[1727624046603,0.00247111,65810.0,65809.0,0.67660736]
[1727624046872,0.00247111,65810.0,65809.0,0.8548953]
[1727624047384,0.001654,65813.0,65812.0,0.5332123]
[1727624048869,0.002654,65813.0,65812.0,0.5432123]
[1727624049102,0.002654,65813.0,65812.0,0.68887048]
[1727624050273,0.003654,65813.0,65812.0,0.71158514]
[1727624051208,0.003654,65813.0,65812.0,0.71358514]
[1727624051426,0.023814,65827.0,65812.0,0.71358514]
[1727624051427,0.023814,65827.0,65817.0,0.0778]
[1727624051632,0.023814,65827.0,65826.0,0.4101803]
[1727624051848,0.001654,65835.0,65834.0,0.151897]
[1727624052058,0.001654,65835.0,65834.0,0.2326623]
[1727624052291,0.02594081,65835.0,65834.0,0.2326623]
[1727624052504,0.001654,65835.0,65834.0,0.2326623]
[1727624052712,0.02594081,65835.0,65834.0,0.2326623]
[1727624052920,0.001654,65835.0,65834.0,0.2326623]
[1727624053373,0.02594081,65835.0,65834.0,0.2326623]
[1727624053628,0.001654,65835.0,65834.0,0.2326623]
[1727624053836,0.001654,65835.0,65834.0,0.3323623]
[1727624054041,0.002654,65835.0,65834.0,0.4101623]
[1727624054471,0.005654,65835.0,65834.0,0.4101623]
[1727624054897,0.002654,65835.0,65834.0,0.4101623]
[1727624055139,0.002654,65835.0,65834.0,0.4131623]
[1727624055347,0.001654,65835.0,65834.0,0.4131623]
[1727624055549,0.001654,65835.0,65834.0,0.4171623]
[1727624059805,0.001654,65835.0,65834.0,0.51964023]
[1727624061471,0.001654,65835.0,65834.0,0.79792817]
[1727624061889,0.001656,65841.0,65840.0,0.151883]
[1727624062097,0.001656,65841.0,65840.0,0.4044483]
[1727624063124,0.001656,65841.0,65840.0,0.4094483]
[1727624063326,0.001656,65841.0,65840.0,0.43540843]
[1727624064148,0.001656,65841.0,65840.0,0.43840843]
[1727624065013,0.001656,65841.0,65840.0,0.4124483]
[1727624066054,0.001656,65841.0,65840.0,0.4354483]
[1727624067357,0.001656,65841.0,65840.0,0.69073624]
[1727624068413,0.001656,65846.0,65845.0,0.151871]
[1727624068648,0.001656,65846.0,65845.0,0.3483363]
[1727624068918,0.001656,65846.0,65845.0,0.44778392]
[1727624069397,0.001656,65846.0,65845.0,0.3483363]
[1727624069649,0.001656,65846.0,65845.0,0.151871]
[1727624069886,0.001656,65846.0,65845.0,0.0807653]
[1727624070127,0.001656,65846.0,65845.0,0.2326363]
[1727624070377,0.001656,65846.0,65845.0,0.0867653]
[1727624070601,0.001656,65846.0,65845.0,0.2386363]
[1727624071051,0.001656,65846.0,65845.0,0.0867653]
[1727624071280,0.001656,65846.0,65845.0,0.0947653]
[1727624071745,0.03578724,65846.0,65845.0,0.1947653]
[1727624071951,0.03578724,65846.0,65845.0,0.114]
[1727624072170,0.18765624,65846.0,65845.0,0.114]
[1727624072786,0.18765624,65846.0,65845.0,0.014]
[1727624073403,0.18765624,65846.0,65845.0,0.164]
[1727624073807,0.18765624,65846.0,65845.0,0.064]
[1727624074037,0.18765624,65846.0,65845.0,0.1447653]
[1727624074461,0.18765624,65846.0,65845.0,0.064]
[1727624075524,0.18738203,65846.0,65845.0,0.056]
[1727624075913,0.18738203,65846.0,65845.0,0.057]
[1727624076117,0.18738203,65846.0,65845.0,0.051]
[1727624076315,0.19038203,65846.0,65845.0,0.052]
[1727624076948,0.1777494,65846.0,65845.0,0.052]
[1727624090501,0.22305479,65846.0,65845.0,0.052]
[1727624091357,0.1777494,65846.0,65845.0,0.052]
[1727624092008,0.0258804,65846.0,65845.0,0.052]
[1727624092222,0.07137427,65846.0,65845.0,0.052]
[1727624092440,0.07137427,65846.0,65845.0,0.203871]
[1727624092441,0.0258804,65846.0,65845.0,0.203871]
[1727624092653,0.0258804,65846.0,65845.0,0.1297]
[1727624092878,0.0258044,65846.0,65845.0,0.1297]
[1727624093526,0.0258044,65846.0,65845.0,0.052]
[1727624093527,0.07131025,65846.0,65845.0,0.052]
[1727624094196,0.00438179,65846.0,65845.0,0.052]
[1727624094418,0.07131367,65846.0,65845.0,0.052]
[1727624094629,0.02580782,65846.0,65845.0,0.052]
[1727624095519,0.07131367,65846.0,65845.0,0.052]
[1727624095766,0.07103946,65846.0,65845.0,0.052]
[1727624095933,0.22290846,65846.0,65845.0,0.052]
[1727624096354,0.02553361,65846.0,65845.0,0.052]
[1727624096829,0.02553361,65846.0,65845.0,0.280971]
[1727624097058,0.02553361,65846.0,65845.0,0.43735906]
[1727624103001,0.02553361,65846.0,65845.0,0.53135906]
[1727624104329,0.02553361,65846.0,65845.0,0.53218606]
[1727624106383,0.00410758,65846.0,65845.0,0.53218606]
[1727624107288,0.00410758,65846.0,65845.0,0.375798]
[1727624107510,0.00410758,65846.0,65845.0,0.475798]
[1727624107992,0.00410758,65846.0,65845.0,0.474798]
[1727624108206,0.00110758,65846.0,65845.0,0.473798]
[1727624108619,0.00110758,65846.0,65845.0,0.474798]
[1727624109777,0.00110758,65846.0,65845.0,0.59285714]
[1727624113478,0.00110758,65846.0,65845.0,0.474798]
[1727624115703,0.00083337,65846.0,65845.0,0.474798]
[1727624116570,0.00083337,65846.0,65845.0,0.5555633]
[1727624116988,0.02229546,65846.0,65845.0,0.5555633]
[1727624117194,0.00083337,65846.0,65845.0,0.5555633]
[1727624117409,0.02229546,65846.0,65845.0,0.5555633]
[1727624117629,0.00083337,65846.0,65845.0,0.5555633]
[1727624117836,0.02229546,65846.0,65845.0,0.5555633]
[1727624118058,0.00083337,65846.0,65845.0,0.4555633]
[1727624118271,0.02229546,65846.0,65845.0,0.2844633]
[1727624118473,0.02230041,65846.0,65845.0,0.2844633]
[1727624118923,0.00083337,65846.0,65845.0,0.2844633]
[1727624119329,0.02230041,65846.0,65845.0,0.2844633]
[1727624119536,0.00083337,65846.0,65845.0,0.2844633]
[1727624120228,0.02230041,65846.0,65845.0,0.2844633]
[1727624120414,0.00083337,65846.0,65845.0,0.2844633]
[1727624120674,0.02230041,65846.0,65845.0,0.2844633]
[1727624121951,0.06786258,65846.0,65845.0,0.2844633]
[1727624124519,0.02230041,65846.0,65845.0,0.2844633]
[1727624124947,0.0678691,65846.0,65845.0,0.2844633]
[1727624125162,0.09064366,65846.0,65845.0,0.2844633]
[1727624125369,0.02230041,65846.0,65845.0,0.2844633]
[1727624126075,0.09064366,65846.0,65845.0,0.2844633]
[1727624126703,0.09064366,65846.0,65845.0,0.203698]
[1727624126924,0.09064366,65846.0,65845.0,0.2844633]
[1727624128262,0.09066445,65846.0,65845.0,0.2844633]
[1727624132487,0.02230041,65846.0,65845.0,0.2844633]
[1727624132891,0.00083337,65846.0,65845.0,0.2844633]
[1727624133344,0.01750918,65846.0,65845.0,0.2844633]
[1727624133550,0.00083337,65846.0,65845.0,0.2844633]
[1727624134833,0.18342489,65846.0,65845.0,0.2844633]
[1727624135091,0.2001007,65846.0,65845.0,0.2844633]
[1727624135515,0.29125275,65846.0,65845.0,0.2844633]
[1727624135740,0.29097813,65846.0,65845.0,0.2844633]
[1727624137837,0.29109194,65846.0,65845.0,0.2844633]
[1727624140361,0.19988258,65846.0,65845.0,0.2844633]
[1727624142340,0.39832671,65846.0,65845.0,0.051827]
[1727624142844,0.5375499,65846.0,65845.0,0.051827]
[1727624143074,0.49097477,65846.0,65845.0,0.051827]
[1727624143311,0.44375158,65846.0,65845.0,0.051827]
[1727624144283,0.44375158,65846.0,65845.0,0.050827]
[1727624144518,0.44375158,65846.0,65845.0,0.051827]
[1727624144723,0.44675158,65846.0,65845.0,0.051827]
[1727624145150,0.44375158,65846.0,65845.0,0.051827]
[1727624145395,0.44375158,65846.0,65845.0,0.050827]
[1727624145600,0.44375158,65846.0,65845.0,0.052827]
[1727624145601,0.44675158,65846.0,65845.0,0.052827]
[1727624146022,0.44375158,65846.0,65845.0,0.051827]
[1727624147283,0.45470283,65846.0,65845.0,0.052827]
[1727624147726,0.50188531,65846.0,65845.0,0.052827]
[1727624148517,0.45470283,65846.0,65845.0,0.052827]
[1727624151783,0.59130785,65846.0,65845.0,0.052827]
[1727624152646,0.45470283,65846.0,65845.0,0.052827]
[1727624155804,0.45442813,65846.0,65845.0,0.052827]
[1727624157834,0.47823735,65846.0,65845.0,0.052827]
[1727624158044,0.45442813,65846.0,65845.0,0.052827]
[1727624160922,0.47823722,65846.0,65845.0,0.052827]
[1727624162361,0.38623722,65846.0,65845.0,0.052827]
[1727624164047,0.36242813,65846.0,65845.0,0.052827]
[1727624164618,0.17982886,65846.0,65845.0,0.052827]
[1727624164845,0.36210216,65846.0,65845.0,0.052827]
[1727624166150,0.36210216,65846.0,65845.0,0.2104923]
[1727624166151,0.21023316,65846.0,65845.0,0.2104923]
[1727624166325,0.36210216,65846.0,65845.0,0.2104923]
[1727624166573,0.21023316,65846.0,65845.0,0.2104923]
[1727624166777,0.36210216,65846.0,65845.0,0.2104923]
[1727624168202,0.36210216,65846.0,65845.0,0.129727]
[1727624168405,0.36210216,65846.0,65845.0,0.052827]
[1727624168534,0.38591037,65846.0,65845.0,0.052827]
[1727624171605,0.38617876,65846.0,65845.0,0.052827]
[1727624174265,0.38606592,65846.0,65845.0,0.052827]
[1727624175662,0.38579121,65846.0,65845.0,0.052827]
[1727624183747,0.38579121,65846.0,65845.0,0.226627]
[1727624189076,0.20336236,65846.0,65845.0,0.226627]
[1727624189327,0.38655891,65846.0,65845.0,0.226627]
[1727624193209,0.38655891,65846.0,65845.0,0.150527]
[1727624194087,0.38655891,65846.0,65845.0,0.052827]
[1727624196027,0.3862842,65846.0,65845.0,0.052827]
[1727624196649,0.3862842,65846.0,65845.0,0.08343893]
[1727624197123,0.3862842,65846.0,65845.0,0.052827]
[1727624198002,0.3862842,65846.0,65845.0,0.380698]
[1727624198003,0.2344152,65846.0,65845.0,0.380698]
[1727624198246,0.05121865,65846.0,65845.0,0.380698]
[1727624198520,0.23495561,65846.0,65845.0,0.380698]
[1727624198735,0.23495561,65846.0,65845.0,0.228827]
[1727624198982,0.02741044,65846.0,65845.0,0.380698]
[1727624199194,0.09580933,65846.0,65845.0,0.380698]
[1727624199425,0.05658812,65846.0,65845.0,0.380698]
[1727624199660,0.07293923,65846.0,65845.0,0.380698]
[1727624199870,0.07293923,65846.0,65845.0,0.379698]
[1727624200080,0.07593923,65846.0,65845.0,0.379698]
[1727624200319,0.07593923,65846.0,65845.0,0.51695403]
[1727624200541,0.07593923,65846.0,65845.0,0.51595403]
[1727624200747,0.06493923,65846.0,65845.0,0.52095403]
[1727624200955,0.07493923,65846.0,65845.0,0.52195403]
[1727624201192,0.02935062,65846.0,65845.0,0.52195403]
[1727624201402,0.01935062,65846.0,65845.0,0.52095403]
[1727624201822,0.003,65846.0,65845.0,0.52495403]
[1727624204472,0.06839889,65852.0,65845.0,0.52495403]
[1727624204473,0.04724261,65854.0,65852.0,0.30371]
[1727624204690,0.04724261,65854.0,65853.0,0.4109618]
[1727624204691,0.001654,65854.0,65853.0,0.4109618]
[1727624204955,0.001654,65854.0,65853.0,0.5086183]
[1727624205603,0.005654,65854.0,65853.0,0.5086183]
[1727624205813,0.005654,65854.0,65853.0,0.62422363]
[1727624206240,0.005654,65854.0,65853.0,0.77951157]
[1727624206878,0.001654,65854.0,65853.0,0.77951157]
[1727624207295,0.001654,65854.0,65853.0,0.78151157]
[1727624208181,0.001656,65861.0,65854.0,0.1]
[1727624208398,0.001654,65865.0,65864.0,0.5085933]
[1727624208639,0.001654,65865.0,65864.0,0.66388124]
[1727624210671,0.001654,65865.0,65864.0,0.67088124]
[1727624211757,0.001654,65865.0,65864.0,0.67588124]
[1727624215872,0.00137937,65865.0,65864.0,0.67588124]
[1727624216079,0.00137937,65865.0,65864.0,0.70383124]
[1727624218265,0.00137937,65865.0,65864.0,0.439828]
[1727624218472,0.00137937,65865.0,65864.0,0.5205933]
[1727624218688,0.00137937,65865.0,65864.0,0.3687653]
[1727624218897,0.00137937,65865.0,65864.0,0.0924]
[1727624219154,0.02259615,65865.0,65864.0,0.1731653]
[1727624219395,0.02259615,65865.0,65864.0,0.3249933]
[1727624219700,0.02259615,65865.0,65864.0,0.39752913]
[1727624220107,0.00137937,65865.0,65864.0,0.39752913]
[1727624222375,0.00137937,65865.0,65864.0,0.0927653]
[1727624222616,0.15320437,65865.0,65864.0,0.012]
[1727624222877,0.17442115,65865.0,65864.0,0.012]
[1727624223530,0.02259615,65865.0,65864.0,0.012]
[1727624224198,0.02259615,65865.0,65864.0,0.0927653]
[1727624224649,0.17442115,65865.0,65864.0,0.012]
[1727624225559,0.17442115,65865.0,65864.0,0.005]
[1727624226216,0.02259615,65865.0,65861.0,0.0807653]
[1727624226422,0.02559615,65865.0,65861.0,0.0807653]
[1727624226631,0.00437937,65865.0,65861.0,0.0807653]
[1727624226852,0.151832,65862.0,65861.0,0.0807653]
[1727624227306,0.17304577,65862.0,65861.0,0.0807653]
[1727624227523,0.02121377,65862.0,65861.0,0.0807653]
[1727624227951,0.004,65862.0,65861.0,0.2325973]
[1727624228582,0.02521377,65862.0,65861.0,0.2325973]
[1727624228793,0.004,65862.0,65861.0,0.2325973]
[1727624229034,0.02521377,65862.0,65861.0,0.2325973]
[1727624229284,0.004,65862.0,65861.0,0.2325973]
[1727624229515,0.02521377,65862.0,65861.0,0.2325973]
[1727624229723,0.004,65862.0,65861.0,0.2325973]
[1727624229955,0.02521377,65862.0,65861.0,0.2325973]
[1727624230408,0.02521377,65862.0,65861.0,0.3227973]
[1727624230699,0.02521377,65862.0,65861.0,0.3978973]
[1727624231404,0.004,65862.0,65861.0,0.49842353]
[1727624231615,0.004,65862.0,65861.0,0.3978973]
[1727624232902,0.00137937,65865.0,65864.0,0.151828]
[1727624233116,0.00137937,65865.0,65864.0,0.2356295]
[1727624233326,0.00137937,65865.0,65864.0,0.3258295]
[1727624233569,0.00137937,65865.0,65864.0,0.3978933]
[1727624233760,0.00137937,65865.0,65864.0,0.52938283]
[1727624234217,0.00237937,65865.0,65864.0,0.52938283]
[1727624234858,0.00237937,65865.0,65864.0,0.53038283]
[1727624235918,0.00210474,65865.0,65864.0,0.53038283]
[1727624242102,0.00210474,65865.0,65864.0,0.53120983]
[1727624247442,0.00210474,65865.0,65864.0,0.68649777]
[1727624249843,0.00210474,65865.0,65864.0,0.70216952]
[1727624251280,0.00210474,65865.0,65864.0,0.71315293]
[1727624252581,0.00210474,65865.0,65864.0,0.69748118]
[1727624254098,0.00210474,65865.0,65864.0,0.71316124]
[1727624256477,0.00210474,65865.0,65864.0,0.70217783]
[1727624258637,0.00210474,65865.0,65864.0,0.80217783]
[1727624259489,0.00210474,65865.0,65864.0,0.64688989]
[1727624260347,0.00210474,65865.0,65864.0,0.51540036]
[1727624264755,0.00210474,65865.0,65864.0,0.4997203]
[1727624265573,0.00210474,65865.0,65864.0,0.4246203]
[1727624266016,0.00210474,65865.0,65864.0,0.44029683]
[1727624268309,0.00210474,65865.0,65864.0,0.4246203]
[1727624269524,0.00192201,65865.0,65864.0,0.4246203]
[1727624270309,0.00192201,65865.0,65864.0,0.44027779]
[1727624272597,0.00192201,65865.0,65864.0,0.56909872]
[1727624272775,0.00192201,65865.0,65864.0,0.58476079]
[1727624274958,0.00192201,65865.0,65864.0,0.44028237]
[1727624275894,0.00192201,65865.0,65864.0,0.4246203]
[1727624276384,0.02315598,65865.0,65864.0,0.4246203]
[1727624276895,0.00192201,65865.0,65864.0,0.44027795]
[1727624277149,0.02315598,65865.0,65864.0,0.44027795]
[1727624277405,0.02315598,65865.0,65864.0,0.4246203]
[1727624278384,0.02315598,65865.0,65864.0,0.44027099]
[1727624278891,0.02315598,65865.0,65864.0,0.58474873]
[1727624279148,0.02315598,65865.0,65864.0,0.44027099]
[1727624282336,0.02315598,65865.0,65864.0,0.4246203]
[1727624283309,0.02315598,65865.0,65864.0,0.3344203]
[1727624284298,0.06875976,65865.0,65864.0,0.3344203]
[1727624285013,0.06875916,65865.0,65864.0,0.3344203]
[1727624286380,0.06875916,65865.0,65864.0,0.44717517]
[1727624286819,0.06875916,65865.0,65864.0,0.3344203]
[1727624288331,0.06875916,65865.0,65864.0,0.35008603]
[1727624289819,0.06875667,65865.0,65864.0,0.35008603]
[1727624290480,0.02315598,65865.0,65864.0,0.35008603]
[1727624290693,0.09155702,65865.0,65864.0,0.35008603]
[1727624291552,0.02315598,65865.0,65864.0,0.35008603]
[1727624292247,0.02315598,65865.0,65864.0,0.01749273]
[1727624292248,0.28897731,65865.0,65864.0,0.01749273]
[1727624292468,0.36166161,65865.0,65864.0,0.01749273]
[1727624293076,0.36166161,65865.0,65864.0,0.001827]
[1727624294475,0.36084177,65865.0,65864.0,0.001827]
[1727624298485,0.47471651,65865.0,65864.0,0.001827]
[1727624299346,0.47450436,65865.0,65864.0,0.001827]
[1727624303443,0.36063012,65865.0,65864.0,0.001827]
[1727624304105,0.36054894,65865.0,65864.0,0.001827]
[1727624306551,0.36054894,65865.0,65864.0,0.0825923]
[1727624313934,0.36040381,65865.0,65864.0,0.0825923]
[1727624314159,0.45146652,65865.0,65864.0,0.0825923]
[1727624314635,0.45146652,65865.0,65864.0,0.001827]
[1727624315062,0.36040381,65865.0,65864.0,0.001827]
[1727624318229,0.36059683,65865.0,65864.0,0.001827]
[1727624318682,0.47443572,65865.0,65864.0,0.001827]
[1727624322987,0.47467614,65865.0,65864.0,0.001827]
[1727624324228,0.57077614,65865.0,65864.0,0.001827]
[1727624324581,0.65047614,65865.0,65864.0,0.001827]
[1727624325418,0.53661321,65865.0,65864.0,0.001827]
[1727624326009,0.36081321,65865.0,65864.0,0.001827]
[1727624326222,0.47469641,65865.0,65864.0,0.001827]
[1727624327787,0.47481415,65865.0,65864.0,0.001827]
[1727624328419,0.36092002,65865.0,65864.0,0.001827]
[1727624332471,0.36073817,65865.0,65864.0,0.001827]
[1727624337445,0.36093495,65865.0,65864.0,0.001827]
[1727624337668,0.49777337,65865.0,65864.0,0.001827]
[1727624341071,0.17498098,65865.0,65864.0,0.001827]
[1727624341274,0.49792983,65865.0,65864.0,0.001827]
[1727624349260,0.49793052,65865.0,65864.0,0.001827]
[1727624349473,0.49792976,65865.0,65864.0,0.001827]
[1727624350518,0.36105482,65865.0,65864.0,0.001827]
[1727624350722,0.49795523,65865.0,65864.0,0.001827]
[1727624352163,0.17498098,65865.0,65864.0,0.001827]
[1727624352606,0.49805049,65865.0,65864.0,0.001827]
[1727624356751,0.17498098,65865.0,65864.0,0.001827]
[1727624357602,0.02315598,65865.0,65864.0,0.095027]
[1727624358567,0.17498098,65865.0,65864.0,0.001827]
[1727624359191,0.02315598,65865.0,65864.0,0.001827]
[1727624359509,0.17498098,65865.0,65864.0,0.001827]
[1727624363583,0.49813481,65865.0,65864.0,0.001827]
[1727624364867,0.34630981,65865.0,65864.0,0.001827]
[1727624365251,0.49813481,65865.0,65864.0,0.001827]
[1727624370556,0.36123709,65865.0,65864.0,0.001827]
[1727624370795,0.49813481,65865.0,65864.0,0.001827]
[1727624371771,0.49817933,65865.0,65864.0,0.001827]
[1727624376523,0.49818732,65865.0,65864.0,0.001827]
[1727624381563,0.49816879,65865.0,65864.0,0.001827]
[1727624382809,0.34634379,65865.0,65864.0,0.001827]
[1727624383041,0.49816879,65865.0,65864.0,0.001827]
[1727624385288,0.34634379,65865.0,65864.0,0.001827]
[1727624386963,0.49816879,65865.0,65864.0,0.001827]
[1727624391423,0.3612665,65865.0,65864.0,0.001827]
[1727624394531,0.49816879,65865.0,65864.0,0.001827]
[1727624400456,0.34634379,65865.0,65864.0,0.001827]
[1727624400704,0.49816879,65865.0,65864.0,0.001827]
[1727624403962,0.34634379,65865.0,65864.0,0.001827]
[1727624404177,0.64472695,65865.0,65864.0,0.001827]
[1727624404403,0.50782466,65865.0,65864.0,0.001827]
[1727624405269,0.3612665,65865.0,65864.0,0.001827]
[1727624409843,0.3850655,65865.0,65864.0,0.001827]
[1727624410129,0.3612665,65865.0,65864.0,0.001827]
[1727624412813,0.4567665,65865.0,65864.0,0.001827]
[1727624414100,0.27048098,65865.0,65864.0,0.001827]
[1727624414308,0.55174591,65865.0,65864.0,0.001827]
[1727624415237,0.45605451,65865.0,65864.0,0.001827]
[1727624416087,0.45607678,65865.0,65864.0,0.001827]
[1727624422998,0.29428047,65865.0,65864.0,0.001827]
[1727624423742,0.27048098,65865.0,65864.0,0.001827]
[1727624425394,0.45581013,65865.0,65864.0,0.001827]
[1727624426595,0.36031013,65865.0,65864.0,0.001827]
[1727624428557,0.49707887,65865.0,65864.0,0.001827]
[1727624429395,0.3505567,65865.0,65864.0,0.232455]
[1727624429607,0.21378919,65865.0,65864.0,0.180527]
[1727624430277,0.36561419,65865.0,65864.0,0.180527]
[1727624431402,0.21378919,65865.0,65864.0,0.180527]
[1727624431836,0.21297795,65865.0,65864.0,0.180527]
[1727624432058,0.36480295,65865.0,65864.0,0.180527]
[1727624433355,0.21297795,65865.0,65864.0,0.180527]
[1727624433562,0.36480295,65865.0,65864.0,0.180527]
[1727624434470,0.36225706,65865.0,65864.0,0.180527]
[1727624438668,0.21043206,65865.0,65864.0,0.180527]
[1727624438885,0.36225706,65865.0,65864.0,0.180527]
[1727624443879,0.36121207,65865.0,65864.0,0.180527]
[1727624444725,0.49800724,65865.0,65864.0,0.180527]
[1727624445145,0.36121207,65865.0,65864.0,0.180527]
[1727624445409,0.35961207,65865.0,65864.0,0.180527]
[1727624445619,0.49640724,65865.0,65864.0,0.101727]
[1727624445899,0.35961207,65865.0,65864.0,0.101727]
[1727624446850,0.35961207,65865.0,65864.0,0.001827]
[1727624453283,0.36126607,65865.0,65864.0,0.0825923]
[1727624457034,0.3400321,65865.0,65864.0,0.0825923]
[1727624457251,0.35902456,65865.0,65864.0,0.0825923]
[1727624458118,0.35774231,65865.0,65864.0,0.0825923]
[1727624466337,0.35815881,65865.0,65864.0,0.0825923]
[1727624468938,0.36329056,65865.0,65864.0,0.0825923]
[1727624469366,0.36329056,65865.0,65864.0,0.1759923]
[1727624470436,0.38708876,65865.0,65864.0,0.1759923]
[1727624471100,0.38760035,65865.0,65864.0,0.1759923]
[1727624472454,0.38760035,65865.0,65864.0,0.0825923]
[1727624472908,0.36380215,65865.0,65864.0,0.0825923]
[1727624475090,0.36380215,65865.0,65864.0,0.0823923]
[1727624477328,0.21197715,65865.0,65864.0,0.0823923]
[1727624477538,0.36380215,65865.0,65864.0,0.0823923]
[1727624477749,0.21197715,65865.0,65864.0,0.0823923]
[1727624477997,0.36380215,65865.0,65864.0,0.0823923]
[1727624480574,0.36358697,65865.0,65864.0,0.0823923]
[1727624480708,0.36359727,65865.0,65864.0,0.0823923]
[1727624481925,0.36359727,65865.0,65864.0,0.001627]
[1727624484223,0.21177227,65865.0,65864.0,0.001627]
[1727624486844,0.21177227,65865.0,65864.0,0.153455]
[1727624487311,0.21177227,65865.0,65864.0,0.001627]
[1727624487533,0.21177227,65865.0,65864.0,0.153455]
[1727624488918,0.21177227,65865.0,65864.0,0.2342203]
[1727624490587,0.21162526,65865.0,65864.0,0.2342203]
[1727624495277,0.21179048,65865.0,65864.0,0.2342203]
[1727624497021,0.21179048,65865.0,65864.0,0.0823923]
[1727624497306,0.21179048,65865.0,65864.0,0.2342203]
[1727624500003,0.21179048,65865.0,65864.0,0.0823923]
[1727624500439,0.21179048,65865.0,65864.0,0.2342203]
[1727624501698,0.21179048,65865.0,65864.0,0.0823923]
[1727624503069,0.36361548,65865.0,65864.0,0.001627]
[1727624503300,0.49315204,65865.0,65864.0,0.001627]
[1727624503743,0.6471291,65865.0,65864.0,0.001627]
[1727624504174,0.56484125,65865.0,65864.0,0.001627]
[1727624504392,0.56484125,65865.0,65864.0,0.000827]
[1727624504609,0.22517393,65865.0,65864.0,0.000827]
[1727624504844,0.56484521,65865.0,65864.0,0.000827]
[1727624505282,0.56584521,65865.0,65864.0,0.000827]
[1727624505735,0.56484521,65865.0,65864.0,0.000827]
[1727624505969,0.56884521,65865.0,65864.0,0.001827]
[1727624506187,0.151839,65859.0,65858.0,0.0807653]
[1727624506446,0.36198006,65859.0,65858.0,0.0807653]
[1727624507395,0.21014106,65859.0,65858.0,0.0807653]
[1727624507628,0.21014106,65859.0,65858.0,0.4061063]
[1727624508583,0.21014106,65859.0,65858.0,0.2542653]
[1727624508811,0.21114106,65859.0,65858.0,0.2542653]
[1727624509515,0.21097169,65859.0,65858.0,0.2542653]
[1727624510286,0.32499149,65859.0,65858.0,0.4061063]
[1727624510752,0.32499149,65859.0,65858.0,0.2542653]
[1727624511771,0.32499149,65859.0,65858.0,0.2550923]
[1727624512276,0.21097169,65859.0,65858.0,0.2550923]
[1727624512806,0.21097169,65859.0,65858.0,0.36668217]
[1727624512807,0.32499397,65859.0,65858.0,0.36668217]
[1727624513031,0.47221225,65859.0,65858.0,0.1763923]
[1727624513260,0.32037325,65859.0,65858.0,0.1763923]
[1727624513730,0.47221225,65859.0,65858.0,0.1763923]
[1727624513956,0.46710658,65859.0,65858.0,0.1763923]
[1727624514739,0.35308429,65859.0,65858.0,0.1763923]
[1727624517887,0.46710653,65859.0,65858.0,0.1763923]
[1727624518880,0.46963318,65859.0,65858.0,0.1763923]
[1727624519579,0.4769899,65859.0,65858.0,0.000827]
[1727624521910,0.35561102,65859.0,65858.0,0.000827]
[1727624522136,0.3548867,65859.0,65858.0,0.000827]
[1727624525697,0.2030477,65859.0,65858.0,0.0815923]
[1727624526209,0.3548867,65859.0,65858.0,0.0815923]
[1727624526443,0.2030477,65859.0,65858.0,0.0815923]
[1727624526663,0.3548867,65859.0,65858.0,0.0815923]
[1727624527365,0.3548867,65859.0,65855.0,0.151847]
[1727624527628,0.29655443,65858.0,65856.0,0.0807653]
[1727624527865,0.29655439,65857.0,65856.0,0.0807653]
[1727624528104,0.13083688,65857.0,65856.0,0.0807653]
[1727624528364,0.31337733,65857.0,65856.0,0.0807653]
[1727624528830,0.31337733,65857.0,65856.0,0.2326113]
[1727624529067,0.31337733,65857.0,65856.0,0.0817653]
[1727624530276,0.31337733,65857.0,65856.0,0.2336113]
[1727624530537,0.31337733,65857.0,65856.0,0.3299113]
[1727624530538,0.19936339,65857.0,65856.0,0.3299113]
[1727624530755,0.29057293,65857.0,65856.0,0.3299113]
[1727624531209,0.29057293,65857.0,65856.0,0.1780653]
[1727624531416,0.29362669,65857.0,65856.0,0.1780653]
[1727624531663,0.29362669,65857.0,65856.0,0.3299113]
[1727624533256,0.29362669,65857.0,65856.0,0.1780653]
[1727624534376,0.29362669,65857.0,65856.0,0.3299113]
[1727624537124,0.29362669,65857.0,65856.0,0.3307383]
[1727624537578,0.20241859,65857.0,65856.0,0.3307383]
[1727624539916,0.29363225,65857.0,65856.0,0.3307383]
[1727624540646,0.29369161,65857.0,65856.0,0.3307383]
[1727624540885,0.202477,65857.0,65856.0,0.3307383]
[1727624541123,0.01682294,65857.0,65856.0,0.3307383]
[1727624541364,0.201177,65857.0,65856.0,0.3307383]
[1727624541615,0.10673907,65857.0,65856.0,0.3307383]
[1727624541853,0.1295412,65857.0,65856.0,0.3307383]
[1727624542079,0.201177,65857.0,65856.0,0.3307383]
[1727624542307,0.31519526,65857.0,65856.0,0.3307383]
[1727624542546,0.201177,65857.0,65856.0,0.3307383]
[1727624545806,0.31519526,65857.0,65856.0,0.3307383]
[1727624546292,0.01552294,65857.0,65856.0,0.4133383]
[1727624546531,0.01552294,65857.0,65856.0,0.5133383]
[1727624547005,0.001654,65859.0,65858.0,0.432641]
[1727624548370,0.001654,65859.0,65858.0,0.441641]
[1727624549609,0.002654,65859.0,65858.0,0.348641]